[Event "Live Chess"]
[Site "Chess.com"]
[Date "2023.05.21"]
[Round "-"]
[White "OleksiyJr1"]
[Black "Ocelot32"]
[Result "0-1"]
[WhiteElo "1044"]
[BlackElo "1434"]
[TimeControl "300"]
[EndTime "8:51:31 PDT"]
[Termination "Ocelot32 won by checkmate"]

1. e4 {[%clk 0:04:58.3]} 1... e6 {[%clk 0:04:57.6]} 2. Nf3 {[%clk 0:04:57.4]}
2... d5 {[%clk 0:04:54.8]} 3. e5 {[%clk 0:04:55.6]} 3... c5 {[%clk 0:04:53.5]}
4. d4 {[%clk 0:04:54.6]} 4... cxd4 {[%clk 0:04:51.9]} 5. Nxd4 {[%clk 0:04:52.5]}
5... Bc5 {[%clk 0:04:50.2]} 6. f4 {[%clk 0:04:51.1]} 6... Nh6 {[%clk 0:04:43.6]}
7. Bb5+ {[%clk 0:04:46.3]} 7... Bd7 {[%clk 0:04:42.2]} 8. Bxd7+ {[%clk 0:04:40]}
8... Nxd7 {[%clk 0:04:41.2]} 9. c3 {[%clk 0:04:39.4]} 9... Bxd4 {[%clk
0:04:33.3]} 10. cxd4 {[%clk 0:04:37.9]} 10... Nf5 {[%clk 0:04:33]} 11. Nc3
{[%clk 0:04:37]} 11... Qh4+ {[%clk 0:04:30.8]} 12. g3 {[%clk 0:04:34.9]} 12...
Nxg3 {[%clk 0:04:29.7]} 13. Be3 {[%clk 0:04:25]} 13... Nxh1+ {[%clk 0:04:24]}
14. Bf2 {[%clk 0:04:22.7]} 14... Qxf2# {[%clk 0:04:21.8]} 0-1

[Event "Live Chess"]
[Site "Chess.com"]
[Date "2023.05.21"]
[Round "-"]
[White "HoarseyHorsey"]
[Black "RichardABates"]
[Result "0-1"]
[WhiteElo "1467"]
[BlackElo "2190"]
[TimeControl "300"]
[EndTime "8:51:33 PDT"]
[Termination "RichardABates won by resignation"]

1. d4 {[%clk 0:04:59.2]} 1... Nf6 {[%clk 0:04:58.3]} 2. c4 {[%clk 0:04:58.5]}
2... g6 {[%clk 0:04:56]} 3. f3 {[%clk 0:04:57]} 3... Bg7 {[%clk 0:04:50.1]} 4.
e4 {[%clk 0:04:55.7]} 4... O-O {[%clk 0:04:48.9]} 5. Nc3 {[%clk 0:04:54.9]} 5...
d6 {[%clk 0:04:46.9]} 6. Nge2 {[%clk 0:04:54]} 6... c5 {[%clk 0:04:45.3]} 7. d5
{[%clk 0:04:52.7]} 7... e6 {[%clk 0:04:43.4]} 8. Ng3 {[%clk 0:04:38.8]} 8...
exd5 {[%clk 0:04:41.6]} 9. cxd5 {[%clk 0:04:38]} 9... a6 {[%clk 0:04:36.7]} 10.
a4 {[%clk 0:04:36]} 10... Nbd7 {[%clk 0:04:33.9]} 11. Be2 {[%clk 0:04:34.4]}
11... h5 {[%clk 0:04:29.7]} 12. Bg5 {[%clk 0:04:18.4]} 12... Qa5 {[%clk
0:04:26.4]} 13. Qd2 {[%clk 0:04:10.2]} 13... Re8 {[%clk 0:04:21.1]} 14. O-O
{[%clk 0:04:01.6]} 14... Nh7 {[%clk 0:04:17.4]} 15. Bh4 {[%clk 0:03:56]} 15...
Qb4 {[%clk 0:04:09.6]} 16. Rab1 {[%clk 0:03:49.3]} 16... Qd4+ {[%clk 0:04:07.6]}
17. Kh1 {[%clk 0:03:47.6]} 17... Qxd2 {[%clk 0:04:05.6]} 0-1

[Event "Live Chess"]
[Site "Chess.com"]
[Date "2023.05.21"]
[Round "-"]
[White "Ferrarifan27"]
[Black "McSlash1"]
[Result "0-1"]
[WhiteElo "2047"]
[BlackElo "1977"]
[TimeControl "300"]
[EndTime "8:51:43 PDT"]
[Termination "McSlash1 won on time"]

1. e4 {[%clk 0:04:58.9]} 1... c5 {[%clk 0:04:57.9]} 2. Nf3 {[%clk 0:04:56.8]}
2... d6 {[%clk 0:04:57.1]} 3. d4 {[%clk 0:04:55.6]} 3... cxd4 {[%clk 0:04:57]}
4. Nxd4 {[%clk 0:04:54.8]} 4... Nf6 {[%clk 0:04:56.6]} 5. Nc3 {[%clk 0:04:52.1]}
5... g6 {[%clk 0:04:56.2]} 6. Nd5 {[%clk 0:04:49.9]} 6... Nxd5 {[%clk 0:04:46]}
7. Bb5+ {[%clk 0:04:47.5]} 7... Bd7 {[%clk 0:04:42.9]} 8. exd5 {[%clk
0:04:46.9]} 8... Bg7 {[%clk 0:04:37.9]} 9. O-O {[%clk 0:04:43.4]} 9... O-O
{[%clk 0:04:34.5]} 10. Bxd7 {[%clk 0:04:40.4]} 10... Nxd7 {[%clk 0:04:34.4]} 11.
Re1 {[%clk 0:04:39.4]} 11... Re8 {[%clk 0:04:31.7]} 12. Bg5 {[%clk 0:04:32.6]}
12... h6 {[%clk 0:04:30.3]} 13. Bh4 {[%clk 0:04:30.7]} 13... Ne5 {[%clk
0:04:28.1]} 14. c3 {[%clk 0:04:20.4]} 14... Qb6 {[%clk 0:04:25.1]} 15. Nb3
{[%clk 0:04:17.6]} 15... h5 {[%clk 0:04:21.6]} 16. Bg3 {[%clk 0:04:16]} 16...
Nc4 {[%clk 0:04:17.9]} 17. Qe2 {[%clk 0:04:12.8]} 17... Rac8 {[%clk 0:04:14]}
18. Rab1 {[%clk 0:04:05]} 18... a5 {[%clk 0:04:11.1]} 19. Qc2 {[%clk 0:03:56.1]}
19... a4 {[%clk 0:04:07.6]} 20. Nd2 {[%clk 0:03:54]} 20... Nxd2 {[%clk
0:04:02.4]} 21. Qxd2 {[%clk 0:03:52.7]} 21... Qc5 {[%clk 0:04:01]} 22. Re4
{[%clk 0:03:44.7]} 22... a3 {[%clk 0:03:59.5]} 23. bxa3 {[%clk 0:03:34.8]} 23...
Qxc3 {[%clk 0:03:57.9]} 24. Qxc3 {[%clk 0:03:30.2]} 24... Rxc3 {[%clk
0:03:57.8]} 25. h3 {[%clk 0:03:25.6]} 25... Rxa3 {[%clk 0:03:55.6]} 26. Rxb7
{[%clk 0:03:24.5]} 26... Bf6 {[%clk 0:03:55.1]} 27. Bxd6 {[%clk 0:03:15.6]}
27... Rxa2 {[%clk 0:03:52.4]} 28. Bxe7 {[%clk 0:03:08.2]} 28... Bg5 {[%clk
0:03:17.9]} 29. d6 {[%clk 0:02:57.2]} 29... Ra1+ {[%clk 0:03:03]} 30. Kh2 {[%clk
0:02:55.6]} 30... Bxe7 {[%clk 0:03:00.3]} 31. dxe7 {[%clk 0:02:48.7]} 31... f5
{[%clk 0:02:56.4]} 32. Re6 {[%clk 0:02:40.7]} 32... Kf7 {[%clk 0:02:55.6]} 33.
Rbb6 {[%clk 0:02:38.6]} 33... Ra2 {[%clk 0:02:50.9]} 34. Rf6+ {[%clk 0:02:18.7]}
34... Kxe7 {[%clk 0:02:49.6]} 35. Rbe6+ {[%clk 0:02:18]} 35... Kd7 {[%clk
0:02:48.5]} 36. Rxe8 {[%clk 0:02:15.5]} 36... Kxe8 {[%clk 0:02:48.4]} 37. f3
{[%clk 0:02:14.1]} 37... g5 {[%clk 0:02:44.6]} 38. Rxf5 {[%clk 0:02:12.1]} 38...
g4 {[%clk 0:02:42.9]} 39. hxg4 {[%clk 0:02:05]} 39... hxg4 {[%clk 0:02:42.8]}
40. fxg4 {[%clk 0:02:03]} 40... Ke7 {[%clk 0:02:38.7]} 41. Kh3 {[%clk
0:01:59.3]} 41... Ke6 {[%clk 0:02:38.2]} 42. g3 {[%clk 0:01:57.2]} 42... Ra1
{[%clk 0:02:36.1]} 43. Rb5 {[%clk 0:01:46.4]} 43... Kf6 {[%clk 0:02:32.3]} 44.
g5+ {[%clk 0:01:43.4]} 44... Kg6 {[%clk 0:02:29.7]} 45. Kh4 {[%clk 0:01:40.4]}
45... Ra4+ {[%clk 0:02:23.3]} 46. g4 {[%clk 0:01:39.5]} 46... Ra6 {[%clk
0:02:22.8]} 47. Rb8 {[%clk 0:01:33]} 47... Rc6 {[%clk 0:02:17.6]} 48. Rh8 {[%clk
0:01:31.2]} 48... Kg7 {[%clk 0:02:16.1]} 49. Ra8 {[%clk 0:01:15.7]} 49... Rc1
{[%clk 0:02:14.7]} 50. Ra7+ {[%clk 0:01:12.6]} 50... Kg6 {[%clk 0:02:13.9]} 51.
Ra6+ {[%clk 0:01:11.6]} 51... Kg7 {[%clk 0:02:13.1]} 52. g6 {[%clk 0:01:08.6]}
52... Rc7 {[%clk 0:02:06.5]} 53. Kh5 {[%clk 0:01:03]} 53... Rc5+ {[%clk
0:02:02.7]} 54. g5 {[%clk 0:01:00.8]} 54... Rc7 {[%clk 0:02:02]} 55. Rf6 {[%clk
0:00:57.9]} 55... Rc1 {[%clk 0:01:59.7]} 56. Rf7+ {[%clk 0:00:55.1]} 56... Kg8
{[%clk 0:01:58.5]} 57. Rb7 {[%clk 0:00:53]} 57... Rh1+ {[%clk 0:01:55.2]} 58.
Kg4 {[%clk 0:00:51.8]} 58... Rg1+ {[%clk 0:01:54.7]} 59. Kf4 {[%clk 0:00:50.7]}
59... Rf1+ {[%clk 0:01:53.9]} 60. Ke4 {[%clk 0:00:47.4]} 60... Rg1 {[%clk
0:01:53.3]} 61. Kf5 {[%clk 0:00:41.5]} 61... Rf1+ {[%clk 0:01:51.3]} 62. Ke6
{[%clk 0:00:36.5]} 62... Re1+ {[%clk 0:01:48.2]} 63. Kf6 {[%clk 0:00:28.3]}
63... Rf1+ {[%clk 0:01:47.3]} 64. Ke7 {[%clk 0:00:27.5]} 64... Re1+ {[%clk
0:01:46]} 65. Kd8 {[%clk 0:00:25.8]} 65... Re5 {[%clk 0:01:40.9]} 66. Rb6 {[%clk
0:00:19.4]} 66... Rxg5 {[%clk 0:01:39.1]} 67. Ke7 {[%clk 0:00:18.8]} 67... Kg7
{[%clk 0:01:37.9]} 68. Re6 {[%clk 0:00:16.9]} 68... Rg1 {[%clk 0:01:35.1]} 69.
Ke8 {[%clk 0:00:15.6]} 69... Ra1 {[%clk 0:01:32]} 70. Kd7 {[%clk 0:00:14.5]}
70... Ra7+ {[%clk 0:01:29.9]} 71. Ke8 {[%clk 0:00:13.5]} 71... Kg8 {[%clk
0:01:27.3]} 72. Re7 {[%clk 0:00:12.2]} 72... Ra6 {[%clk 0:01:18.4]} 73. Kd7
{[%clk 0:00:11.3]} 73... Ra7+ {[%clk 0:01:12.2]} 74. Ke6 {[%clk 0:00:10]} 74...
Ra6+ {[%clk 0:01:09.1]} 75. Kf5 {[%clk 0:00:09]} 75... Ra1 {[%clk 0:01:09]} 76.
Kf6 {[%clk 0:00:07.5]} 76... Rf1+ {[%clk 0:01:07.5]} 77. Kg5 {[%clk 0:00:06.7]}
77... Rg1+ {[%clk 0:01:06.3]} 78. Kh6 {[%clk 0:00:06.1]} 78... Rh1+ {[%clk
0:01:04.5]} 79. Kg5 {[%clk 0:00:06]} 79... Kf8 {[%clk 0:01:02.2]} 80. Rf7+
{[%clk 0:00:04.5]} 80... Kg8 {[%clk 0:01:01.3]} 81. Rb7 {[%clk 0:00:03.5]} 81...
Rg1+ {[%clk 0:00:59.6]} 82. Kh6 {[%clk 0:00:02.8]} 82... Rh1+ {[%clk 0:00:58.4]}
83. Kg5 {[%clk 0:00:01.7]} 83... Kf8 {[%clk 0:00:58]} 84. g7+ {[%clk 0:00:00.4]}
84... Kg8 {[%clk 0:00:56.8]} 0-1

[Event "Live Chess"]
[Site "Chess.com"]
[Date "2023.05.21"]
[Round "-"]
[White "grillage"]
[Black "Biranidun"]
[Result "0-1"]
[WhiteElo "1791"]
[BlackElo "2522"]
[TimeControl "300"]
[EndTime "8:51:44 PDT"]
[Termination "Biranidun won by resignation"]

1. d4 {[%clk 0:04:54.1]} 1... Nf6 {[%clk 0:04:58.7]} 2. Nc3 {[%clk 0:04:52.3]}
2... d5 {[%clk 0:04:57.5]} 3. Bf4 {[%clk 0:04:50.1]} 3... g6 {[%clk 0:04:56.3]}
4. e3 {[%clk 0:04:47]} 4... Bg7 {[%clk 0:04:55.3]} 5. h4 {[%clk 0:04:46.2]} 5...
c6 {[%clk 0:04:54.2]} 6. h5 {[%clk 0:04:38.5]} 6... Nxh5 {[%clk 0:04:53.2]} 7.
Rxh5 {[%clk 0:04:37.7]} 7... gxh5 {[%clk 0:04:53.1]} 8. Qxh5 {[%clk 0:04:36.4]}
8... Nd7 {[%clk 0:04:52.6]} 9. Qh2 {[%clk 0:04:34.7]} 9... Nf6 {[%clk
0:04:51.6]} 10. Be2 {[%clk 0:04:22]} 10... Bf5 {[%clk 0:04:50.2]} 11. f3 {[%clk
0:04:12.5]} 11... b5 {[%clk 0:04:48.8]} 12. O-O-O {[%clk 0:04:09.8]} 12... Rc8
{[%clk 0:04:38.9]} 13. g4 {[%clk 0:04:08.1]} 13... Bg6 {[%clk 0:04:38]} 14. Be5
{[%clk 0:04:02.1]} 14... h6 {[%clk 0:04:35.3]} 15. f4 {[%clk 0:03:55.9]} 15...
Kf8 {[%clk 0:04:31.7]} 16. f5 {[%clk 0:03:53.2]} 16... Bh7 {[%clk 0:04:29.4]}
17. Qg3 {[%clk 0:03:47.1]} 17... Qa5 {[%clk 0:04:27.2]} 18. g5 {[%clk
0:02:51.8]} 18... hxg5 {[%clk 0:04:25.8]} 19. Qxg5 {[%clk 0:02:50.6]} 19... b4
{[%clk 0:04:25.1]} 20. Nb1 {[%clk 0:02:48.3]} 20... c5 {[%clk 0:04:23]} 21. Nf3
{[%clk 0:02:38.7]} 21... cxd4 {[%clk 0:04:21.8]} 22. Bxd4 {[%clk 0:02:25.6]}
22... Qa4 {[%clk 0:04:18.2]} 23. b3 {[%clk 0:02:16.8]} 23... Qxa2 {[%clk
0:04:16.8]} 24. Bd3 {[%clk 0:02:13.6]} 24... Qxb3 {[%clk 0:04:10.6]} 25. Kd2
{[%clk 0:02:01.1]} 25... Qa4 {[%clk 0:04:04.9]} 26. Rg1 {[%clk 0:01:54.5]} 26...
Rg8 {[%clk 0:04:03.8]} 27. Qh4 {[%clk 0:01:51.8]} 27... Ne4+ {[%clk 0:03:42.1]}
28. Ke2 {[%clk 0:01:43.1]} 28... Rxc2+ {[%clk 0:03:40.2]} 29. Bxc2 {[%clk
0:01:40.2]} 29... Qxc2+ {[%clk 0:03:40.1]} 30. Nbd2 {[%clk 0:01:39.5]} 30...
Nxd2 {[%clk 0:03:28.2]} 31. Nxd2 {[%clk 0:01:38]} 31... Qxf5 {[%clk 0:03:20.9]}
32. Bxg7+ {[%clk 0:01:35.5]} 32... Rxg7 {[%clk 0:03:19.9]} 33. Rxg7 {[%clk
0:01:34.7]} 33... Kxg7 {[%clk 0:03:19.8]} 34. Qxe7 {[%clk 0:01:27.2]} 34... Qd3+
{[%clk 0:03:18.5]} 35. Ke1 {[%clk 0:01:20.4]} 35... Qc3 {[%clk 0:03:09.6]} 36.
Qg5+ {[%clk 0:01:16.7]} 36... Bg6 {[%clk 0:03:08.5]} 37. Ke2 {[%clk 0:01:12.4]}
37... b3 {[%clk 0:03:05.5]} 38. Nf3 {[%clk 0:01:09.5]} 38... b2 {[%clk
0:03:00.9]} 39. Nd4 {[%clk 0:01:01.9]} 39... b1=Q {[%clk 0:02:58.7]} 40. Qe5+
{[%clk 0:00:59.6]} 40... Kg8 {[%clk 0:02:46.7]} 41. Qe8+ {[%clk 0:00:58]} 41...
Kh7 {[%clk 0:02:45.2]} 0-1

[Event "Live Chess"]
[Site "Chess.com"]
[Date "2023.05.21"]
[Round "-"]
[White "garyjc"]
[Black "ramses-IIG"]
[Result "1-0"]
[WhiteElo "1079"]
[BlackElo "850"]
[TimeControl "300"]
[EndTime "8:51:44 PDT"]
[Termination "garyjc won by resignation"]

1. e4 {[%clk 0:04:57.8]} 1... d5 {[%clk 0:04:59.9]} 2. exd5 {[%clk 0:04:56.4]}
2... Qxd5 {[%clk 0:04:59.8]} 3. Nc3 {[%clk 0:04:55.4]} 3... Qe6+ {[%clk
0:04:59.7]} 4. Be2 {[%clk 0:04:52.3]} 4... Qg6 {[%clk 0:04:59.6]} 5. Nf3 {[%clk
0:04:51.1]} 5... Qxg2 {[%clk 0:04:57.2]} 6. Rg1 {[%clk 0:04:44.9]} 6... Qh3
{[%clk 0:04:57.1]} 7. Ng5 {[%clk 0:04:35.6]} 7... Qxh2 {[%clk 0:04:54]} 8. Nf3
{[%clk 0:04:30.5]} 8... Qd6 {[%clk 0:04:49.5]} 9. d4 {[%clk 0:04:26.3]} 9... c6
{[%clk 0:04:47.7]} 10. Ne4 {[%clk 0:04:11.4]} 10... Qb4+ {[%clk 0:04:44.3]} 11.
c3 {[%clk 0:04:09.6]} 11... Qb6 {[%clk 0:04:42.7]} 12. Bd3 {[%clk 0:04:02.2]}
12... Nf6 {[%clk 0:04:34.8]} 13. Qe2 {[%clk 0:03:59.8]} 13... Nbd7 {[%clk
0:04:24]} 14. Nd6+ {[%clk 0:03:54.1]} 14... Kd8 {[%clk 0:04:13]} 15. Nxf7+
{[%clk 0:03:52.2]} 1-0

[Event "Live Chess"]
[Site "Chess.com"]
[Date "2023.05.21"]
[Round "-"]
[White "LiamClery2020"]
[Black "DRS44"]
[Result "1-0"]
[WhiteElo "1996"]
[BlackElo "1222"]
[TimeControl "300"]
[EndTime "8:51:51 PDT"]
[Termination "LiamClery2020 won - game abandoned"]

1. e4 {[%clk 0:04:59.9]} 1... e5 {[%clk 0:04:33.2]} 2. Nc3 {[%clk 0:04:58.1]}
2... Nf6 {[%clk 0:04:29.1]} 3. f4 {[%clk 0:04:57.2]} 3... d5 {[%clk 0:04:23.8]}
4. fxe5 {[%clk 0:04:56.1]} 4... Nxe4 {[%clk 0:04:20.2]} 5. Qf3 {[%clk
0:04:55.5]} 5... Nxc3 {[%clk 0:04:12.4]} 6. bxc3 {[%clk 0:04:55.4]} 6... Bc5
{[%clk 0:04:06.5]} 7. d4 {[%clk 0:04:53.8]} 7... Bb6 {[%clk 0:04:03.2]} 8. Bd3
{[%clk 0:04:52.2]} 8... O-O {[%clk 0:03:56.6]} 9. Ne2 {[%clk 0:04:48.6]} 9...
Qh4+ {[%clk 0:03:39.5]} 10. Ng3 {[%clk 0:04:46.6]} 10... Be6 {[%clk 0:03:31.4]}
11. O-O {[%clk 0:04:43.9]} 11... Nc6 {[%clk 0:03:23.8]} 12. Be3 {[%clk
0:04:37.2]} 1-0

[Event "Live Chess"]
[Site "Chess.com"]
[Date "2023.05.21"]
[Round "-"]
[White "JanMur7"]
[Black "Bot_Boy"]
[Result "1-0"]
[WhiteElo "1951"]
[BlackElo "332"]
[TimeControl "300"]
[EndTime "8:52:05 PDT"]
[Termination "JanMur7 won on time"]

1. e4 {[%clk 0:04:59.1]} 1... d5 {[%clk 0:04:31.5]} 2. exd5 {[%clk 0:04:57.6]}
2... Qxd5 {[%clk 0:04:29.6]} 3. Nc3 {[%clk 0:04:56.4]} 3... Qd8 {[%clk
0:04:27.6]} 4. Nf3 {[%clk 0:04:54.4]} 4... e6 {[%clk 0:04:23.4]} 5. d4 {[%clk
0:04:52.2]} 5... Bb4 {[%clk 0:04:18.1]} 6. Bc4 {[%clk 0:04:49.7]} 6... Nf6
{[%clk 0:04:06.1]} 7. O-O {[%clk 0:04:47.4]} 7... Bxc3 {[%clk 0:03:55.5]} 8.
bxc3 {[%clk 0:04:47.3]} 8... a6 {[%clk 0:03:39.9]} 9. Ne5 {[%clk 0:04:43.5]}
9... g6 {[%clk 0:03:17.2]} 10. Bg5 {[%clk 0:04:18.1]} 10... b5 {[%clk
0:02:49.5]} 11. Bb3 {[%clk 0:04:08.7]} 11... h6 {[%clk 0:02:45.2]} 12. Qf3
{[%clk 0:03:56.9]} 12... hxg5 {[%clk 0:02:21.3]} 13. Qxa8 {[%clk 0:03:40.5]}
13... Bd7 {[%clk 0:02:04.3]} 14. Nxd7 {[%clk 0:03:37.8]} 14... Nfxd7 {[%clk
0:01:44.3]} 15. Qf3 {[%clk 0:03:31.4]} 15... Qf6 {[%clk 0:01:22]} 16. Qxf6
{[%clk 0:03:20.8]} 16... Nxf6 {[%clk 0:01:20.1]} 17. Rfe1 {[%clk 0:03:18.9]}
17... O-O {[%clk 0:01:07.7]} 18. Re5 {[%clk 0:03:09.6]} 18... g4 {[%clk
0:00:55.8]} 19. Rae1 {[%clk 0:03:02.5]} 19... Re8 {[%clk 0:00:49.1]} 20. d5
{[%clk 0:02:57.4]} 20... Nbd7 {[%clk 0:00:36.1]} 21. dxe6 {[%clk 0:02:55.6]}
21... fxe6 {[%clk 0:00:16.2]} 22. Rxe6 {[%clk 0:02:53.9]} 22... Rxe6 {[%clk
0:00:14.3]} 23. Rxe6 {[%clk 0:02:51.1]} 23... Nf8 {[%clk 0:00:06.9]} 24. Rxf6+
{[%clk 0:02:49.3]} 24... Kg7 {[%clk 0:00:04.6]} 25. Rf7+ {[%clk 0:02:49.2]}
25... Kh6 {[%clk 0:00:01.2]} 26. Rxf8 {[%clk 0:02:49]} 1-0

[Event "Live Chess"]
[Site "Chess.com"]
[Date "2023.05.21"]
[Round "-"]
[White "onemoretime1975"]
[Black "youtookmyhorse"]
[Result "1-0"]
[WhiteElo "1840"]
[BlackElo "784"]
[TimeControl "300"]
[EndTime "8:52:06 PDT"]
[Termination "onemoretime1975 won by checkmate"]

1. e4 {[%clk 0:04:57.2]} 1... c6 {[%clk 0:04:59.6]} 2. Nf3 {[%clk 0:04:54.3]}
2... d5 {[%clk 0:04:59.2]} 3. exd5 {[%clk 0:04:53.3]} 3... cxd5 {[%clk
0:04:56.3]} 4. d4 {[%clk 0:04:51.6]} 4... Nf6 {[%clk 0:04:53.7]} 5. Bd3 {[%clk
0:04:48.2]} 5... Bg4 {[%clk 0:04:52.6]} 6. h3 {[%clk 0:04:46.4]} 6... Bxf3
{[%clk 0:04:51.3]} 7. Qxf3 {[%clk 0:04:44.1]} 7... e6 {[%clk 0:04:50.8]} 8. c3
{[%clk 0:04:42.6]} 8... Bd6 {[%clk 0:04:50.2]} 9. Bf4 {[%clk 0:04:40.7]} 9...
Bxf4 {[%clk 0:04:46.1]} 10. Qxf4 {[%clk 0:04:39.6]} 10... Nc6 {[%clk 0:04:44.2]}
11. O-O {[%clk 0:04:37.2]} 11... Qe7 {[%clk 0:04:35.7]} 12. Nd2 {[%clk
0:04:33.9]} 12... Rd8 {[%clk 0:04:33.9]} 13. Nf3 {[%clk 0:04:31.1]} 13... Nh5
{[%clk 0:04:23.5]} 14. Qg4 {[%clk 0:04:10]} 14... Nf6 {[%clk 0:04:20.2]} 15.
Qxg7 {[%clk 0:04:05.2]} 15... Rg8 {[%clk 0:04:15.6]} 16. Qh6 {[%clk 0:04:03.7]}
16... Kd7 {[%clk 0:04:01.3]} 17. Bb5 {[%clk 0:03:58.3]} 17... Rg6 {[%clk
0:03:58.5]} 18. Ne5+ {[%clk 0:03:56.3]} 18... Kc7 {[%clk 0:03:51.6]} 19. Nxg6
{[%clk 0:03:53.4]} 19... fxg6 {[%clk 0:03:49.6]} 20. Bxc6 {[%clk 0:03:50.2]}
20... bxc6 {[%clk 0:03:48.1]} 21. b4 {[%clk 0:03:46.7]} 21... Ne4 {[%clk
0:03:34.2]} 22. Qe3 {[%clk 0:03:43.8]} 22... Rf8 {[%clk 0:03:25.3]} 23. f3
{[%clk 0:03:41]} 23... Ng5 {[%clk 0:03:22.3]} 24. Rfb1 {[%clk 0:03:36]} 24...
Nxh3+ {[%clk 0:03:17.4]} 25. gxh3 {[%clk 0:03:32.8]} 25... Qh4 {[%clk
0:03:15.6]} 26. Qe5+ {[%clk 0:03:23.6]} 26... Kb6 {[%clk 0:03:11.2]} 27. b5
{[%clk 0:03:19.9]} 27... Rxf3 {[%clk 0:03:08.4]} 28. bxc6+ {[%clk 0:03:17.7]}
28... Ka5 {[%clk 0:03:02]} 29. Qc7+ {[%clk 0:03:13.7]} 29... Ka4 {[%clk
0:03:00.2]} 30. Qxa7# {[%clk 0:03:12.2]} 1-0

[Event "Live Chess"]
[Site "Chess.com"]
[Date "2023.05.21"]
[Round "-"]
[White "BillythekidFellowes"]
[Black "EdenHazard8"]
[Result "0-1"]
[WhiteElo "2120"]
[BlackElo "1949"]
[TimeControl "300"]
[EndTime "8:52:07 PDT"]
[Termination "EdenHazard8 won by resignation"]

1. e4 {[%clk 0:04:58.6]} 1... c6 {[%clk 0:04:59.1]} 2. d4 {[%clk 0:04:57.4]}
2... d5 {[%clk 0:04:59]} 3. exd5 {[%clk 0:04:57.3]} 3... cxd5 {[%clk 0:04:58.9]}
4. Nc3 {[%clk 0:04:57.1]} 4... Nc6 {[%clk 0:04:58.3]} 5. Nf3 {[%clk 0:04:56.6]}
5... Bg4 {[%clk 0:04:57.7]} 6. Be3 {[%clk 0:04:55.8]} 6... e6 {[%clk 0:04:56.9]}
7. Bb5 {[%clk 0:04:54.6]} 7... a6 {[%clk 0:04:56.2]} 8. Ba4 {[%clk 0:04:53.7]}
8... Bd6 {[%clk 0:04:54.9]} 9. h3 {[%clk 0:04:52.5]} 9... Ne7 {[%clk 0:04:54.4]}
10. Qe2 {[%clk 0:04:52.4]} 10... Bh5 {[%clk 0:04:52.6]} 11. g4 {[%clk
0:04:51.6]} 11... Bg6 {[%clk 0:04:51.5]} 12. O-O-O {[%clk 0:04:48.1]} 12... b5
{[%clk 0:04:50.4]} 13. Bb3 {[%clk 0:04:44.8]} 13... Na5 {[%clk 0:04:49.6]} 14.
Ne5 {[%clk 0:04:42.9]} 14... Nc4 {[%clk 0:04:44.6]} 15. f4 {[%clk 0:04:38.5]}
15... Rc8 {[%clk 0:04:21.1]} 16. Rhf1 {[%clk 0:04:28.6]} 16... b4 {[%clk
0:04:16.4]} 17. Ba4+ {[%clk 0:04:26.7]} 17... Kf8 {[%clk 0:04:13.9]} 18. f5
{[%clk 0:04:25.8]} 18... exf5 {[%clk 0:04:08]} 19. gxf5 {[%clk 0:04:22.8]} 19...
Bxf5 {[%clk 0:04:07.2]} 20. Nxd5 {[%clk 0:04:14.8]} 20... Nxd5 {[%clk
0:04:05.1]} 21. Rxf5 {[%clk 0:04:11.9]} 21... f6 {[%clk 0:04:02.9]} 22. Nxc4
{[%clk 0:04:05.6]} 22... Rxc4 {[%clk 0:03:58.4]} 23. Qxc4 {[%clk 0:04:02.6]}
23... Nxe3 {[%clk 0:03:57]} 24. Qe6 {[%clk 0:03:57.9]} 24... Nxf5 {[%clk
0:03:32.9]} 25. Qxf5 {[%clk 0:03:56.4]} 25... g6 {[%clk 0:03:31.7]} 26. Qe6
{[%clk 0:03:54.1]} 26... Kg7 {[%clk 0:03:29.8]} 27. Re1 {[%clk 0:03:48]} 27...
Rf8 {[%clk 0:03:27.7]} 28. h4 {[%clk 0:03:40.2]} 28... f5 {[%clk 0:03:26.3]} 29.
Kb1 {[%clk 0:03:35.9]} 29... f4 {[%clk 0:03:23.8]} 30. h5 {[%clk 0:03:34.7]}
30... f3 {[%clk 0:03:22.8]} 31. Bb3 {[%clk 0:03:26.3]} 31... Qh4 {[%clk
0:03:07]} 32. hxg6 {[%clk 0:03:20.4]} 32... hxg6 {[%clk 0:02:59.8]} 33. Rg1
{[%clk 0:03:06.9]} 33... Rf6 {[%clk 0:02:54]} 34. Qd7+ {[%clk 0:02:57.5]} 34...
Kh6 {[%clk 0:02:49.8]} 35. Qd8 {[%clk 0:02:52.2]} 35... Bg3 {[%clk 0:02:31.5]}
36. Bc4 {[%clk 0:02:25.1]} 36... f2 {[%clk 0:02:19.5]} 37. Rf1 {[%clk
0:02:23.8]} 37... Kg5 {[%clk 0:02:16.7]} 38. a3 {[%clk 0:02:11.7]} 38... bxa3
{[%clk 0:02:08.5]} 39. bxa3 {[%clk 0:02:08.3]} 39... Qe4 {[%clk 0:02:00.7]} 40.
Bd3 {[%clk 0:02:03.4]} 40... Qe1+ {[%clk 0:01:57.4]} 41. Kb2 {[%clk 0:02:02.1]}
41... Qe6 {[%clk 0:01:20.4]} 42. Qa5+ {[%clk 0:01:57.6]} 42... Kf4 {[%clk
0:01:18.8]} 43. Qd2+ {[%clk 0:01:53.9]} 43... Kg4 {[%clk 0:01:16.4]} 44. Rh1
{[%clk 0:01:43.8]} 44... Qb6+ {[%clk 0:01:11.1]} 45. Ka2 {[%clk 0:01:40.2]}
45... Qe6+ {[%clk 0:01:05.3]} 46. Kb2 {[%clk 0:01:31.6]} 46... Qb6+ {[%clk
0:01:00.4]} 47. Ka2 {[%clk 0:01:29.1]} 47... Qe6+ {[%clk 0:00:59.1]} 48. Ka1
{[%clk 0:01:28.1]} 48... Qd5 {[%clk 0:00:56.4]} 49. Qe2+ {[%clk 0:01:23.4]}
49... Qf3 {[%clk 0:00:55.5]} 50. Qf1 {[%clk 0:01:12.4]} 50... Qf4 {[%clk
0:00:39.4]} 51. Qh3+ {[%clk 0:01:07.4]} 51... Kf3 {[%clk 0:00:38.4]} 52. c3
{[%clk 0:00:41.1]} 52... Qd2 {[%clk 0:00:37]} 53. Qf1 {[%clk 0:00:33.9]} 53...
Qxc3+ {[%clk 0:00:35.1]} 54. Ka2 {[%clk 0:00:33.8]} 54... Qd2+ {[%clk 0:00:31]}
55. Ka1 {[%clk 0:00:32.9]} 55... Rb6 {[%clk 0:00:28.7]} 56. Qd1+ {[%clk
0:00:26.1]} 56... Qxd1+ {[%clk 0:00:27]} 57. Rxd1 {[%clk 0:00:26]} 57... g5
{[%clk 0:00:23.9]} 58. d5 {[%clk 0:00:25.3]} 58... Be5+ {[%clk 0:00:22]} 59. Ka2
{[%clk 0:00:22.1]} 59... Rb2+ {[%clk 0:00:21.5]} 60. Ka1 {[%clk 0:00:21.7]}
60... Rd2+ {[%clk 0:00:20.6]} 61. Kb1 {[%clk 0:00:19.9]} 61... Rxd1+ {[%clk
0:00:20.5]} 62. Kc2 {[%clk 0:00:19.6]} 62... Rxd3 {[%clk 0:00:19.5]} 0-1